[Event "*** SCC Grand Prix: Titled Tuesday Blitz"]
[Site "Chess.com"]
[Date "2020.08.11"]
[Round "6"]
[White "FMalexhdez"]
[Black "WPWPWP-2015"]
[Result "0-1"]
[WhiteElo "2195"]
[BlackElo "2393"]
[TimeControl "180+1"]
[EndTime "11:07:28 PDT"]
[Termination "WPWPWP-2015 won on time"]

1. e4 {[%clk 0:03:00.3]} 1... c5 {[%clk 0:02:58.6]} 2. Nf3 {[%clk 0:02:59.7]}
2... e6 {[%clk 0:02:52.9]} 3. d4 {[%clk 0:03:00.6]} 3... cxd4 {[%clk 0:02:52.4]}
4. Nxd4 {[%clk 0:02:59.4]} 4... Nc6 {[%clk 0:02:52.3]} 5. Nc3 {[%clk 0:02:59.1]}
5... Qc7 {[%clk 0:02:52.5]} 6. Nb3 {[%clk 0:02:51.6]} 6... a6 {[%clk 0:02:50.6]}
7. g3 {[%clk 0:02:43.4]} 7... Bb4 {[%clk 0:02:41]} 8. Bg2 {[%clk 0:02:43]} 8...
Nge7 {[%clk 0:02:38.3]} 9. O-O {[%clk 0:02:42.9]} 9... O-O {[%clk 0:02:38.1]}
10. Bf4 {[%clk 0:02:36.5]} 10... e5 {[%clk 0:02:35.4]} 11. Bd2 {[%clk
0:02:13.8]} 11... d6 {[%clk 0:02:21.2]} 12. a3 {[%clk 0:02:13.7]} 12... Bxc3
{[%clk 0:02:20.6]} 13. Bxc3 {[%clk 0:02:13.1]} 13... Be6 {[%clk 0:02:17.4]} 14.
Qd2 {[%clk 0:02:04]} 14... Rad8 {[%clk 0:02:04.5]} 15. Rfd1 {[%clk 0:01:52.8]}
15... d5 {[%clk 0:01:58.9]} 16. Nc5 {[%clk 0:01:46.2]} 16... Bg4 {[%clk
0:01:39.6]} 17. exd5 {[%clk 0:01:34.2]} 17... Bxd1 {[%clk 0:01:33]} 18. Rxd1
{[%clk 0:01:34.1]} 18... Nd4 {[%clk 0:01:03.2]} 19. Bxd4 {[%clk 0:01:32.2]}
19... exd4 {[%clk 0:01:02.9]} 20. Qxd4 {[%clk 0:01:30.7]} 20... Nf5 {[%clk
0:01:02.2]} 21. Qc3 {[%clk 0:01:13.6]} 21... Nd6 {[%clk 0:00:50.8]} 22. a4
{[%clk 0:00:50.7]} 22... Rc8 {[%clk 0:00:40.2]} 23. Ne4 {[%clk 0:00:38.2]} 23...
Qe7 {[%clk 0:00:39]} 24. Qd3 {[%clk 0:00:34.2]} 24... f5 {[%clk 0:00:23.6]} 25.
Nxd6 {[%clk 0:00:33.5]} 25... Qxd6 {[%clk 0:00:24.5]} 26. c4 {[%clk 0:00:32.6]}
26... Rce8 {[%clk 0:00:22.3]} 27. Qd4 {[%clk 0:00:27]} 27... b6 {[%clk
0:00:21.9]} 28. a5 {[%clk 0:00:25]} 28... bxa5 {[%clk 0:00:15.3]} 29. c5 {[%clk
0:00:25.1]} 29... Qe7 {[%clk 0:00:08.4]} 30. d6 {[%clk 0:00:23.9]} 30... Qe2
{[%clk 0:00:08.1]} 31. d7 {[%clk 0:00:20.5]} 31... Rd8 {[%clk 0:00:07.7]} 32. c6
{[%clk 0:00:20.1]} 32... f4 {[%clk 0:00:03]} 33. c7 {[%clk 0:00:18]} 33... fxg3
{[%clk 0:00:02.8]} 34. cxd8=Q {[%clk 0:00:14.1]} 34... gxf2+ {[%clk 0:00:02.6]}
35. Kh1 {[%clk 0:00:13.1]} 35... Qe1+ {[%clk 0:00:02.5]} 36. Bf1 {[%clk
0:00:11.2]} 36... Rxd8 {[%clk 0:00:02.3]} 37. Qd5+ {[%clk 0:00:08.7]} 37... Kh8
{[%clk 0:00:02]} 38. Kg2 {[%clk 0:00:06.2]} 38... h6 {[%clk 0:00:01.6]} 39. Bc4
{[%clk 0:00:04.9]} 39... a4 {[%clk 0:00:01.6]} 40. Qg8+ {[%clk 0:00:02.5]} 40...
Rxg8 {[%clk 0:00:01.1]} 41. Bxg8 {[%clk 0:00:02.3]} 41... Qxd1 {[%clk
0:00:01.6]} 42. d8=Q {[%clk 0:00:02.3]} 42... Qxd8 {[%clk 0:00:01.9]} 43. Be6
{[%clk 0:00:02.8]} 43... Qg5+ {[%clk 0:00:02.8]} 0-1

[Event "*** SCC Grand Prix: Titled Tuesday Blitz"]
[Site "Chess.com"]
[Date "2020.08.11"]
[Round "6"]
[White "TranJMinh"]
[Black "youngKID"]
[Result "0-1"]
[WhiteElo "2843"]
[BlackElo "2770"]
[TimeControl "180+1"]
[EndTime "11:07:30 PDT"]
[Termination "youngKID won on time"]

1. d4 {[%clk 0:03:00.9]} 1... Nf6 {[%clk 0:02:59.3]} 2. c4 {[%clk 0:03:00.9]}
2... g6 {[%clk 0:02:59.5]} 3. Nc3 {[%clk 0:03:01.4]} 3... Bg7 {[%clk 0:02:59.9]}
4. e4 {[%clk 0:03:01.8]} 4... d6 {[%clk 0:03:00.6]} 5. Be2 {[%clk 0:03:01.8]}
5... O-O {[%clk 0:03:00.3]} 6. Be3 {[%clk 0:03:00.9]} 6... a6 {[%clk 0:02:57.6]}
7. Nf3 {[%clk 0:02:55.2]} 7... c6 {[%clk 0:02:56.4]} 8. O-O {[%clk 0:02:48.6]}
8... b5 {[%clk 0:02:56]} 9. Nd2 {[%clk 0:02:37.4]} 9... h5 {[%clk 0:02:31.2]}
10. f3 {[%clk 0:02:32.3]} 10... bxc4 {[%clk 0:02:24.7]} 11. Nxc4 {[%clk
0:02:32.2]} 11... d5 {[%clk 0:02:23.3]} 12. Ne5 {[%clk 0:02:29.4]} 12... a5
{[%clk 0:02:08.1]} 13. Rc1 {[%clk 0:02:16.9]} 13... Ba6 {[%clk 0:02:02.5]} 14.
Bxa6 {[%clk 0:02:11.2]} 14... Rxa6 {[%clk 0:02:02.4]} 15. Qd3 {[%clk 0:02:05.5]}
15... a4 {[%clk 0:02:02.5]} 16. Rfd1 {[%clk 0:02:01.2]} 16... Qb6 {[%clk
0:01:51.5]} 17. Rc2 {[%clk 0:01:50.6]} 17... Rd8 {[%clk 0:01:48.3]} 18. h3
{[%clk 0:01:12.9]} 18... Qb7 {[%clk 0:01:44.4]} 19. Qe2 {[%clk 0:01:02.7]} 19...
Ra8 {[%clk 0:01:07.7]} 20. Nd3 {[%clk 0:00:58.8]} 20... dxe4 {[%clk 0:01:05.1]}
21. fxe4 {[%clk 0:00:59.7]} 21... Na6 {[%clk 0:00:52.6]} 22. e5 {[%clk
0:00:54.7]} 22... Nd5 {[%clk 0:00:52.6]} 23. Ne4 {[%clk 0:00:51.1]} 23... Nab4
{[%clk 0:00:29]} 24. Nxb4 {[%clk 0:00:48.2]} 24... Nxb4 {[%clk 0:00:29.7]} 25.
Rcd2 {[%clk 0:00:48]} 25... Qb5 {[%clk 0:00:26.1]} 26. Qf3 {[%clk 0:00:43.7]}
26... Nxa2 {[%clk 0:00:23.4]} 27. Bg5 {[%clk 0:00:38.5]} 27... Rd7 {[%clk
0:00:18.3]} 28. Rf2 {[%clk 0:00:31.9]} 28... Qd5 {[%clk 0:00:18.2]} 29. e6
{[%clk 0:00:26.7]} 29... fxe6 {[%clk 0:00:13.5]} 30. Qf7+ {[%clk 0:00:24.9]}
30... Kh7 {[%clk 0:00:14]} 31. Bf6 {[%clk 0:00:20.6]} 31... exf6 {[%clk
0:00:12.3]} 32. Nxf6+ {[%clk 0:00:20.1]} 32... Kh6 {[%clk 0:00:12.2]} 33. Nxd7
{[%clk 0:00:15.5]} 33... Ra7 {[%clk 0:00:11.1]} 34. Qf4+ {[%clk 0:00:11.7]}
34... g5 {[%clk 0:00:10.8]} 35. Qe3 {[%clk 0:00:04.2]} 35... Rxd7 {[%clk
0:00:10.7]} 36. Rfd2 {[%clk 0:00:04.7]} 36... Nb4 {[%clk 0:00:09.3]} 37. Qa3
{[%clk 0:00:04.1]} 37... c5 {[%clk 0:00:08.1]} 38. dxc5 {[%clk 0:00:02.2]} 38...
Qxc5+ {[%clk 0:00:09]} 39. Kh1 {[%clk 0:00:02.1]} 39... Rxd2 {[%clk 0:00:09]}
40. Rxd2 {[%clk 0:00:02.4]} 40... Qc1+ {[%clk 0:00:09.6]} 41. Kh2 {[%clk
0:00:03.2]} 41... Be5+ {[%clk 0:00:08.7]} 0-1

[Event "*** SCC Grand Prix: Titled Tuesday Blitz"]
[Site "Chess.com"]
[Date "2020.08.11"]
[Round "6"]
[White "pavelalexandru07"]
[Black "Novoselski"]
[Result "1-0"]
[WhiteElo "2224"]
[BlackElo "2383"]
[TimeControl "180+1"]
[EndTime "11:07:30 PDT"]
[Termination "pavelalexandru07 won by resignation"]

1. e4 {[%clk 0:03:00.9]} 1... e5 {[%clk 0:03:00.1]} 2. Nf3 {[%clk 0:03:00.6]}
2... Nc6 {[%clk 0:03:00.5]} 3. Bb5 {[%clk 0:03:01.2]} 3... a6 {[%clk 0:03:00.8]}
4. Ba4 {[%clk 0:03:01.5]} 4... d6 {[%clk 0:03:01.2]} 5. c3 {[%clk 0:02:59]} 5...
Bd7 {[%clk 0:03:01.2]} 6. d4 {[%clk 0:02:58.2]} 6... Nge7 {[%clk 0:03:01.8]} 7.
O-O {[%clk 0:02:57.9]} 7... Ng6 {[%clk 0:03:01.6]} 8. Nbd2 {[%clk 0:02:51.1]}
8... Be7 {[%clk 0:03:01.4]} 9. Re1 {[%clk 0:02:51.3]} 9... O-O {[%clk
0:03:01.4]} 10. Nf1 {[%clk 0:02:51.1]} 10... Nh4 {[%clk 0:02:55.9]} 11. Nxh4
{[%clk 0:02:46.9]} 11... Bxh4 {[%clk 0:02:54.9]} 12. Ng3 {[%clk 0:02:46.6]}
12... Bg5 {[%clk 0:02:53.8]} 13. Be3 {[%clk 0:02:04.5]} 13... h6 {[%clk
0:02:44.5]} 14. Qd2 {[%clk 0:01:47.9]} 14... Re8 {[%clk 0:02:39.2]} 15. Rf1
{[%clk 0:01:19.4]} 15... Bxe3 {[%clk 0:02:25.5]} 16. fxe3 {[%clk 0:01:18.5]}
16... Qg5 {[%clk 0:02:15.9]} 17. Qf2 {[%clk 0:01:04.4]} 17... Rf8 {[%clk
0:02:13]} 18. Bb3 {[%clk 0:00:57.3]} 18... Be8 {[%clk 0:02:09.8]} 19. Nf5 {[%clk
0:00:53.7]} 19... Ne7 {[%clk 0:02:06.1]} 20. h4 {[%clk 0:00:39.6]} 20... Qf6
{[%clk 0:02:04.8]} 21. Qg3 {[%clk 0:00:39.4]} 21... Nxf5 {[%clk 0:02:02.2]} 22.
Rxf5 {[%clk 0:00:39]} 22... Qe7 {[%clk 0:02:01.5]} 23. Raf1 {[%clk 0:00:38.2]}
23... exd4 {[%clk 0:01:53.4]} 24. exd4 {[%clk 0:00:36.6]} 24... Qxe4 {[%clk
0:01:52.6]} 25. Bd5 {[%clk 0:00:29.3]} 25... Qe7 {[%clk 0:01:49.5]} 26. Bxb7
{[%clk 0:00:29.2]} 26... Rb8 {[%clk 0:01:48.6]} 27. Bxa6 {[%clk 0:00:29.3]}
27... Rxb2 {[%clk 0:01:46.7]} 28. Bc4 {[%clk 0:00:29.4]} 28... c6 {[%clk
0:01:46.5]} 29. Re1 {[%clk 0:00:16.1]} 29... Qd7 {[%clk 0:01:36.8]} 30. Rf6
{[%clk 0:00:15.9]} 30... d5 {[%clk 0:01:34.8]} 31. Bd3 {[%clk 0:00:15.9]} 31...
Kh8 {[%clk 0:01:10.8]} 32. Qf4 {[%clk 0:00:15.7]} 32... Qd8 {[%clk 0:00:42.4]}
33. Rxh6+ {[%clk 0:00:15]} 33... Kg8 {[%clk 0:00:35.6]} 34. Bh7+ {[%clk
0:00:14.2]} 34... Kh8 {[%clk 0:00:35.3]} 35. Bd3+ {[%clk 0:00:13.8]} 35... Kg8
{[%clk 0:00:34.7]} 36. Qf5 {[%clk 0:00:13.2]} 36... g6 {[%clk 0:00:30.5]} 37.
Qe5 {[%clk 0:00:13.1]} 37... f6 {[%clk 0:00:30.7]} 38. Qe6+ {[%clk 0:00:11.4]}
38... Bf7 {[%clk 0:00:30.2]} 39. Rxg6+ {[%clk 0:00:11.6]} 39... Kh8 {[%clk
0:00:26.9]} 40. Rh6+ {[%clk 0:00:10]} 40... Kg8 {[%clk 0:00:25.3]} 41. Qe3
{[%clk 0:00:08]} 41... Qd6 {[%clk 0:00:21.3]} 42. Qf3 {[%clk 0:00:06.1]} 42...
Kg7 {[%clk 0:00:14.3]} 43. Rh7+ {[%clk 0:00:05.2]} 43... Kg8 {[%clk 0:00:14]}
44. Qg4+ {[%clk 0:00:05.5]} 1-0

[Event "*** SCC Grand Prix: Titled Tuesday Blitz"]
[Site "Chess.com"]
[Date "2020.08.11"]
[Round "6"]
[White "TST2014"]
[Black "The_Machine04"]
[Result "1-0"]
[WhiteElo "2528"]
[BlackElo "2259"]
[TimeControl "180+1"]
[EndTime "11:07:31 PDT"]
[Termination "TST2014 won on time"]

1. d4 {[%clk 0:02:59.3]} 1... d6 {[%clk 0:02:59.7]} 2. Nf3 {[%clk 0:02:58.8]}
2... Nf6 {[%clk 0:02:59.1]} 3. c4 {[%clk 0:02:58.3]} 3... g6 {[%clk 0:02:58.4]}
4. Nc3 {[%clk 0:02:58]} 4... Bf5 {[%clk 0:02:57.8]} 5. Ng5 {[%clk 0:02:55.8]}
5... Bg7 {[%clk 0:02:52.3]} 6. e4 {[%clk 0:02:55.2]} 6... Bd7 {[%clk 0:02:52.2]}
7. Be2 {[%clk 0:02:45.1]} 7... e5 {[%clk 0:02:43]} 8. d5 {[%clk 0:02:40]} 8...
Na6 {[%clk 0:02:35.2]} 9. Rb1 {[%clk 0:02:35]} 9... h6 {[%clk 0:02:26.9]} 10.
Nf3 {[%clk 0:02:33.6]} 10... Nc5 {[%clk 0:02:26.9]} 11. Nd2 {[%clk 0:02:27.9]}
11... a5 {[%clk 0:02:25.6]} 12. b3 {[%clk 0:02:27.1]} 12... c6 {[%clk
0:02:00.6]} 13. Ba3 {[%clk 0:02:15]} 13... O-O {[%clk 0:01:32.3]} 14. O-O {[%clk
0:02:12.9]} 14... Rc8 {[%clk 0:01:26.9]} 15. dxc6 {[%clk 0:02:01.8]} 15... Bxc6
{[%clk 0:01:24.2]} 16. Qc2 {[%clk 0:01:49.8]} 16... Ne6 {[%clk 0:01:01.7]} 17.
Nf3 {[%clk 0:01:41.8]} 17... Nd4 {[%clk 0:00:57]} 18. Qd3 {[%clk 0:01:29.4]}
18... Re8 {[%clk 0:00:29.2]} 19. Rfd1 {[%clk 0:01:26.2]} 19... Qe7 {[%clk
0:00:15]} 20. Bf1 {[%clk 0:01:21.3]} 20... Nd7 {[%clk 0:00:13.3]} 21. Nxd4
{[%clk 0:00:48]} 21... exd4 {[%clk 0:00:13.1]} 22. Nd5 {[%clk 0:00:48.2]} 22...
Qxe4 {[%clk 0:00:07.9]} 23. Qxe4 {[%clk 0:00:44.7]} 23... Rxe4 {[%clk
0:00:08.8]} 24. Bxd6 {[%clk 0:00:45.1]} 24... Bxd5 {[%clk 0:00:06]} 25. cxd5
{[%clk 0:00:44.9]} 25... Ree8 {[%clk 0:00:05.3]} 26. Bb5 {[%clk 0:00:43.6]}
26... Red8 {[%clk 0:00:02.8]} 27. Be7 {[%clk 0:00:43.4]} 27... Nb6 {[%clk
0:00:02]} 28. Bxd8 {[%clk 0:00:41.9]} 28... Rxd8 {[%clk 0:00:02.9]} 29. Bc4
{[%clk 0:00:39.9]} 29... Nxd5 {[%clk 0:00:02.7]} 30. Bxd5 {[%clk 0:00:39.6]}
30... Rxd5 {[%clk 0:00:03.6]} 31. Rd3 {[%clk 0:00:40]} 31... b5 {[%clk
0:00:03.5]} 32. Rc1 {[%clk 0:00:39.3]} 32... a4 {[%clk 0:00:02.7]} 33. f4 {[%clk
0:00:38.9]} 33... axb3 {[%clk 0:00:02.3]} 34. axb3 {[%clk 0:00:39]} 34... Bf8
{[%clk 0:00:01.9]} 35. Kf2 {[%clk 0:00:38.9]} 35... Kg7 {[%clk 0:00:01.9]} 36.
Kf3 {[%clk 0:00:39.1]} 36... b4 {[%clk 0:00:02.3]} 37. Ke4 {[%clk 0:00:38.5]}
37... Rd7 {[%clk 0:00:02.6]} 38. g4 {[%clk 0:00:38.9]} 38... Be7 {[%clk
0:00:02.1]} 39. Rc4 {[%clk 0:00:38.1]} 39... Bf6 {[%clk 0:00:02.5]} 40. Rxb4
{[%clk 0:00:37.9]} 40... Re7+ {[%clk 0:00:03.4]} 41. Kf3 {[%clk 0:00:37.9]}
41... Re1 {[%clk 0:00:04]} 42. Kg3 {[%clk 0:00:36]} 42... Rb1 {[%clk 0:00:03.5]}
43. h4 {[%clk 0:00:35.6]} 43... Rg1+ {[%clk 0:00:02.5]} 44. Kh3 {[%clk
0:00:33.5]} 44... Rh1+ {[%clk 0:00:02.4]} 45. Kg2 {[%clk 0:00:33.9]} 45... Rxh4
{[%clk 0:00:02.6]} 46. Kg3 {[%clk 0:00:33.4]} 46... Rh1 {[%clk 0:00:02.7]} 47.
g5 {[%clk 0:00:33.5]} 47... hxg5 {[%clk 0:00:01.1]} 48. fxg5 {[%clk 0:00:34]}
48... Rg1+ {[%clk 0:00:01.6]} 49. Kf2 {[%clk 0:00:33.7]} 49... Rxg5 {[%clk
0:00:02.1]} 50. Rb7 {[%clk 0:00:33.5]} 50... Rf5+ {[%clk 0:00:02]} 51. Ke2
{[%clk 0:00:33.4]} 51... g5 {[%clk 0:00:01.4]} 52. b4 {[%clk 0:00:33.7]} 1-0

[Event "*** SCC Grand Prix: Titled Tuesday Blitz"]
[Site "Chess.com"]
[Date "2020.08.11"]
[Round "6"]
[White "Tashik"]
[Black "Natalya_Buksa"]
[Result "1-0"]
[WhiteElo "2391"]
[BlackElo "2474"]
[TimeControl "180+1"]
[EndTime "11:07:33 PDT"]
[Termination "Tashik won by resignation"]

1. d4 {[%clk 0:03:00.9]} 1... d5 {[%clk 0:02:58.2]} 2. Nf3 {[%clk 0:03:00.8]}
2... e6 {[%clk 0:02:58.5]} 3. e3 {[%clk 0:03:00.9]} 3... Nf6 {[%clk 0:02:57.3]}
4. Bd3 {[%clk 0:03:01.4]} 4... c5 {[%clk 0:02:57.9]} 5. b3 {[%clk 0:03:00.3]}
5... Nc6 {[%clk 0:02:58.4]} 6. a3 {[%clk 0:02:57.1]} 6... Be7 {[%clk 0:02:58.3]}
7. O-O {[%clk 0:02:57.1]} 7... O-O {[%clk 0:02:58.8]} 8. Bb2 {[%clk 0:02:57.4]}
8... b6 {[%clk 0:02:57.6]} 9. Nbd2 {[%clk 0:02:53.7]} 9... Bb7 {[%clk
0:02:57.8]} 10. Ne5 {[%clk 0:02:53.2]} 10... Nxe5 {[%clk 0:02:56]} 11. dxe5
{[%clk 0:02:52.7]} 11... Ne4 {[%clk 0:02:56.6]} 12. Nxe4 {[%clk 0:02:37.8]}
12... dxe4 {[%clk 0:02:56.3]} 13. Bc4 {[%clk 0:02:38.4]} 13... Qxd1 {[%clk
0:02:47.8]} 14. Raxd1 {[%clk 0:02:37.5]} 14... Rad8 {[%clk 0:02:48.7]} 15. a4
{[%clk 0:02:33.9]} 15... a6 {[%clk 0:02:41.6]} 16. Rfe1 {[%clk 0:02:33.9]} 16...
g5 {[%clk 0:02:39.1]} 17. Kf1 {[%clk 0:02:31.6]} 17... Kg7 {[%clk 0:02:38.7]}
18. Ke2 {[%clk 0:02:31]} 18... Kg6 {[%clk 0:02:36]} 19. f3 {[%clk 0:02:29]}
19... h5 {[%clk 0:02:33.6]} 20. Rf1 {[%clk 0:02:07.6]} 20... Rxd1 {[%clk
0:02:27.5]} 21. Rxd1 {[%clk 0:02:06.6]} 21... Rd8 {[%clk 0:02:28]} 22. Rxd8
{[%clk 0:02:02.2]} 22... Bxd8 {[%clk 0:02:28.9]} 23. fxe4 {[%clk 0:02:02.2]}
23... Bxe4 {[%clk 0:02:27.9]} 24. Bxa6 {[%clk 0:02:02.6]} 24... Bxg2 {[%clk
0:02:28.1]} 25. Bd3+ {[%clk 0:01:46.7]} 25... Kh6 {[%clk 0:02:10]} 26. e4 {[%clk
0:01:47.1]} 26... g4 {[%clk 0:02:08.2]} 27. Bc1+ {[%clk 0:01:29]} 27... Bg5
{[%clk 0:02:06.7]} 28. Bxg5+ {[%clk 0:01:24.4]} 28... Kxg5 {[%clk 0:02:07.6]}
29. c3 {[%clk 0:01:24.8]} 29... Kf4 {[%clk 0:01:55.3]} 30. b4 {[%clk 0:01:23.2]}
30... cxb4 {[%clk 0:01:55]} 31. cxb4 {[%clk 0:01:24.1]} 31... Bxe4 {[%clk
0:01:52.4]} 32. Bxe4 {[%clk 0:01:00.7]} 32... Kxe4 {[%clk 0:01:52.3]} 33. a5
{[%clk 0:00:59.9]} 33... bxa5 {[%clk 0:01:43.5]} 34. bxa5 {[%clk 0:01:00.8]}
34... Kd5 {[%clk 0:01:43.6]} 35. Ke3 {[%clk 0:01:01.3]} 35... h4 {[%clk
0:01:05.8]} 36. Kf4 {[%clk 0:01:00.9]} 36... g3 {[%clk 0:00:47.2]} 37. hxg3
{[%clk 0:01:00.6]} 37... h3 {[%clk 0:00:47.7]} 38. Kf3 {[%clk 0:01:01.1]} 38...
Kc5 {[%clk 0:00:47.7]} 39. g4 {[%clk 0:00:58.1]} 39... Kb5 {[%clk 0:00:40.5]}
40. Kg3 {[%clk 0:00:58.6]} 40... Kxa5 {[%clk 0:00:41.1]} 41. Kxh3 {[%clk
0:00:59.2]} 41... Kb5 {[%clk 0:00:41.2]} 42. Kh4 {[%clk 0:00:59.1]} 42... Kc6
{[%clk 0:00:17.3]} 43. Kg5 {[%clk 0:00:58.9]} 43... Kd7 {[%clk 0:00:17.8]} 44.
Kf6 {[%clk 0:00:58.3]} 44... Ke8 {[%clk 0:00:18.3]} 45. g5 {[%clk 0:00:29.1]}
45... Kf8 {[%clk 0:00:17]} 46. g6 {[%clk 0:00:29.7]} 46... fxg6 {[%clk
0:00:12.9]} 47. Kxg6 {[%clk 0:00:29.9]} 47... Ke7 {[%clk 0:00:10.9]} 48. Kg7
{[%clk 0:00:29.9]} 48... Ke8 {[%clk 0:00:10.6]} 49. Kf6 {[%clk 0:00:29.5]} 49...
Kd7 {[%clk 0:00:11]} 50. Kf7 {[%clk 0:00:30]} 50... Kd8 {[%clk 0:00:11.6]} 51.
Kxe6 {[%clk 0:00:27.9]} 51... Ke8 {[%clk 0:00:12.5]} 52. Kd6 {[%clk 0:00:21.3]}
52... Kd8 {[%clk 0:00:12.6]} 53. e6 {[%clk 0:00:21]} 53... Ke8 {[%clk
0:00:13.5]} 54. e7 {[%clk 0:00:21.3]} 54... Kf7 {[%clk 0:00:13.7]} 55. Kd7
{[%clk 0:00:21.9]} 1-0

[Event "*** SCC Grand Prix: Titled Tuesday Blitz"]
[Site "Chess.com"]
[Date "2020.08.11"]
[Round "6"]
[White "Bigfish1995"]
[Black "Bulldog167"]
[Result "0-1"]
[WhiteElo "2956"]
[BlackElo "2736"]
[TimeControl "180+1"]
[EndTime "11:07:34 PDT"]
[Termination "Bulldog167 won on time"]

1. d4 {[%clk 0:02:54.6]} 1... Nf6 {[%clk 0:03:00]} 2. c4 {[%clk 0:02:54.3]} 2...
e6 {[%clk 0:03:00.5]} 3. Nf3 {[%clk 0:02:54.5]} 3... c5 {[%clk 0:03:00.9]} 4. d5
{[%clk 0:02:54.2]} 4... exd5 {[%clk 0:03:01.8]} 5. cxd5 {[%clk 0:02:54.3]} 5...
d6 {[%clk 0:03:02.4]} 6. Nc3 {[%clk 0:02:54.4]} 6... g6 {[%clk 0:03:03]} 7. e4
{[%clk 0:02:54.6]} 7... a6 {[%clk 0:03:02.4]} 8. a4 {[%clk 0:02:54.2]} 8... Bg4
{[%clk 0:03:01.9]} 9. Be2 {[%clk 0:02:53.1]} 9... Bxf3 {[%clk 0:03:02]} 10. Bxf3
{[%clk 0:02:53.3]} 10... Bg7 {[%clk 0:03:02.4]} 11. O-O {[%clk 0:02:53.7]} 11...
Nbd7 {[%clk 0:03:01.8]} 12. Bf4 {[%clk 0:02:53]} 12... Qe7 {[%clk 0:03:02]} 13.
Qb3 {[%clk 0:02:25]} 13... O-O {[%clk 0:02:32.6]} 14. Rfe1 {[%clk 0:01:38.7]}
14... Rab8 {[%clk 0:02:19.5]} 15. Be2 {[%clk 0:01:37.1]} 15... Ne8 {[%clk
0:02:02.6]} 16. g3 {[%clk 0:01:32.4]} 16... Nc7 {[%clk 0:02:02.5]} 17. a5 {[%clk
0:01:29.6]} 17... b5 {[%clk 0:02:00.7]} 18. axb6 {[%clk 0:01:29.1]} 18... Rxb6
{[%clk 0:02:01]} 19. Qc2 {[%clk 0:01:29]} 19... Rfb8 {[%clk 0:02:01.4]} 20. Ra2
{[%clk 0:01:27.1]} 20... Bd4 {[%clk 0:01:52.4]} 21. Kg2 {[%clk 0:01:26.5]} 21...
Qf6 {[%clk 0:01:50.8]} 22. Rf1 {[%clk 0:01:18.8]} 22... h5 {[%clk 0:01:33.7]}
23. h4 {[%clk 0:01:17.4]} 23... Ne5 {[%clk 0:01:31.1]} 24. Bg5 {[%clk
0:01:12.1]} 24... Qg7 {[%clk 0:01:31.1]} 25. f3 {[%clk 0:01:01.9]} 25... Nd7
{[%clk 0:01:11.5]} 26. Bd2 {[%clk 0:00:59.2]} 26... Nb5 {[%clk 0:01:05.7]} 27.
Nxb5 {[%clk 0:00:58]} 27... axb5 {[%clk 0:01:06.6]} 28. Ra7 {[%clk 0:00:55.3]}
28... Ne5 {[%clk 0:01:06.9]} 29. b3 {[%clk 0:00:42.5]} 29... c4 {[%clk
0:01:05.7]} 30. Ba5 {[%clk 0:00:36.5]} 30... R6b7 {[%clk 0:00:47.9]} 31. Ra6
{[%clk 0:00:36.2]} 31... cxb3 {[%clk 0:00:42.6]} 32. Qxb3 {[%clk 0:00:35]} 32...
Nc4 {[%clk 0:00:42.9]} 33. Bxc4 {[%clk 0:00:27.7]} 33... bxc4 {[%clk 0:00:43.8]}
34. Qxc4 {[%clk 0:00:28.3]} 34... Rb2+ {[%clk 0:00:43.8]} 35. Kh3 {[%clk
0:00:27.6]} 35... g5 {[%clk 0:00:17.5]} 36. hxg5 {[%clk 0:00:22.5]} 36... f6
{[%clk 0:00:16.6]} 37. Qxd4 {[%clk 0:00:18.3]} 37... Qd7+ {[%clk 0:00:15.9]} 38.
g4 {[%clk 0:00:18.5]} 38... hxg4+ {[%clk 0:00:14.7]} 39. Kg3 {[%clk 0:00:19]}
39... Qh7 {[%clk 0:00:13.9]} 40. Qg1 {[%clk 0:00:07.5]} 40... fxg5 {[%clk
0:00:09.7]} 41. Kxg4 {[%clk 0:00:06.5]} 41... Qh4+ {[%clk 0:00:07.9]} 42. Kf5
{[%clk 0:00:06.9]} 42... Qf4+ {[%clk 0:00:07.7]} 43. Ke6 {[%clk 0:00:07.1]}
43... Qf7+ {[%clk 0:00:04.7]} 0-1